{"text_format":"1","workbook":"xlsx","n_sheets":2,"sheets":["Таблица 1","Лист1"],"not_rendered":{"charts":0,"images":0,"macros":0,"external_links":1,"defined_names":2,"comments":0,"pivot_tables":0},"unopened":[],"bounds":{"document_bytes":16777216,"sheet_cells":100000,"rows_first":2000,"rows_last":500,"rows_between":2000,"halvings":0,"cell_chars":16384,"cell_head_chars":4096},"cells_cut":0,"cells_raw":0,"read":"whole","date_system":"1900"}

{"sheet":"Таблица 1","index":0,"n_rows":319,"n_cols":16,"rows_kept":319,"cut":false,"hidden":false,"merged":[[1,0,2,0],[1,2,1,4],[1,10,1,15],[1,5,1,9]]}
[null,null,"Таблица 1"]
["№ п/п",null,"Сведения о членстве",null,null,"Сведения об уплате взносов в компенсационный фонд (компенсационные фонды) саморегулируемой организации",null,null,null,null,"Сведения об исключении из членов"]
[null,null,"Полное или сокращенное наименование юридического лица, ФИО индивидуального предпринимателя ","Идентификационный номер налогоплательщика (ИНН)","Дата внесения сведений в реестр членов","Сумма взноса в компенсационный фонд *","Сумма взноса в компенсационный фонд возмещения вреда **","Уровень ответственности","Сумма взноса в компенсационный фонд обеспечения договорных обязательств ***","Уровень ответственности","Дата исключения","Основания для исключения ****","Наименование саморегулируемой организации, в которую перешли ЮЛ или ИП *****","Сумма взноса в компенсационный фонд, перечисленная в другую саморегулируемую организацию","Сумма взноса в компенсационный фонд, возвращенная бывшему члену саморегулиуремой организации в соответствии с ч.4 \nст. 3.2 191-ФЗ","Сумма взноса в компенсационный фонд, подлежащая возврату бывшему члену саморегулиуремой организации в соответствии с ч.14 \nст. 3.3 191-ФЗ"]
[1,"Региональная организация общероссийской общественной организации «Союз архитекторов России» Союза архитекторов Республики Башкортостан","РОООО «САР» СА РБ ","0278003043","2009-06-19",150000,50000,1,0,0]
[2,"Общество с ограниченной ответственностью  Творческая архитектурная фирма «Архпроект» Союза архитекторов Республики Башкортостан","ООО ТАФ «Архпроект» СА РБ","0278907673","2009-06-19",{"$f":"G5+I5","v":500000},150000,2,350000,2]
[3,"Государственное унитарное предприятие Институт по проектированию объектов агропромышленного комплекса Республики Башкортостан «Башагропромпроект»","ГУП - Институт «Башагропромпроект»","0274027318","2009-06-19",{"$f":"G6+I6","v":500000},150000,2,350000,2]
[4,"Общество с ограниченной ответственностью «Проектный институт Башжилкоммунпроект»","ГУП ПИ «Башжилкоммунпроект» РБ","0278036419","2009-06-19",{"$f":"G7+I7","v":500000},150000,2,350000,2]
[5,"Общество с ограниченной ответственностью «Архитектурно-планировочное бюро»","ООО «АПБ» ","0268067993","2009-06-19",{"$f":"G8+I8","v":150000},150000,2,0,0]
[6,"Общество с ограниченной ответственностью «АРХиП»","ООО «АРХиП»","0274116014","2009-06-19",150000,50000,1,150000,1]
[7,"Общество с ограниченной ответственностью «Башпроект»","ООО «Башпроект»","0278087974","2009-06-19",{"$f":"G10+I10","v":150000},150000,2,0,0]
[8,"Общество с ограниченной ответственностью «Башпроект»","ООО «БАШПРОЕКТ»","0278092364","2009-06-19",250000,50000,1,150000,1]
[9,"Общество с ограниченной ответственностью «Башпроект-Инженерный Центр»","ООО «Башпроект-ИЦ»","0278143481","2009-06-19",250000,50000,1,0,0]
[10,"Общество с ограниченной ответственностью «Дорпроект»","ООО «Дорпроект»","0276055409","2009-06-19",250000,50000,1,150000,1]
[11,"Общество с ограниченной ответственностью «ПроектСервис»","ООО «ПроектСервис»","0273039582","2009-06-19",{"$f":"G14+I14","v":150000},150000,2,0,0]
[12,"Общество с ограниченной ответственностью Проектно-строительная компания «Строительство»","ООО ПСК «Строительство»","0275052162","2009-06-19",250000,50000,1,150000,1]
[13,"Общество с ограниченной ответственностью «Проектный институт «Промгражданпроект»","ООО ПИ «Промгражданпроект»","0268030464","2009-06-19",150000,50000,1,150000,1]
[14,"Общество с ограниченной ответственностью «СтройМонтажПроект»","ООО «СМП»","0268044996","2009-06-19",150000,50000,1,150000,1]
[15,"Общество с ограниченной ответственностью «Творческая мастерская архитектора Кирайдта «КИРСС»","ООО «ТМ «КИРСС»","0278062521","2009-06-19",250000,50000,1,150000,1]
[16,"Общество с ограниченной ответственностью «ОКТЯБРЬСКНЕФТЕГАЗПРОЕКТ»","ООО «ОНГП»","0265019021","2009-06-19",150000,50000,1,150000,1]
[17,"Общество с ограниченной ответственностью «Гипрострой»","ООО «Гипрострой»","0268041829","2009-06-19",250000,50000,1,150000,1]
[18,"Общество с ограниченной ответственностью «Фирма РОССИ»","ООО «Фирма РОССИ»","0274032565","2009-06-19",150000,50000,1,150000,1]
[19,"Общество с ограниченной ответственностью «Уфимская проектная компания»","ООО «Уфимская проектная компания»","0278136565","2009-06-19",250000,150000,2,0,0]
[20,"Муниципальное унитарное предприятие архитектуры и градостроительства муниципального района  Дюртюлинский  район Республики Башкортостан","МУП А и Г МР Дюртюлинского района РБ","0260009397","2009-06-19",150000,50000,1,150000,1]
[21,"Общество с ограниченной ответственностью «Проектное бюро»","ООО «Проектное бюро»","0276081039","2009-06-19",{"$f":"G24+I24","v":150000},150000,2,0,0]
[22,"Общество с ограниченной ответственностью Архитектурное бюро «ПРОЕКТ 04»","ООО АБ «Проект 04»","0277065470","2009-06-19",{"$f":"G25+I25","v":150000},150000,2,0,0]
[23,"Общество с ограниченной ответственностью «Проектно-технологический институт «Башефтезаводстрой»","ООО «ПТИ «Башнефтезаводстрой»","0277046012","2009-06-19",250000,50000,1,150000,1]
[24,"Общество с ограниченной ответственностью «Мастер плюс»","ООО «Мастер плюс»","0276096959","2009-06-19",250000,50000,1,150000,1]
[25,"Государственное унитарное предприятие «Научно–исследовательский, проектно–конструкторский и производственный  институт строительного и градостроительного комплекса Республики Башкортостан »","ГУП институт «БашНИИстрой»","0277001117","2009-06-19",250000,150000,1,150000,1]
[26,"Федеральное государственное бюджетное образовательное учреждение высшего образования «Уфимский государственный нефтяной технический университет»","ФГБОУ ВО «УГНТУ»","0277006179","2009-06-19",{"$f":"G29+I29","v":500000},150000,2,350000,2]
[27,"Общество с ограниченной ответственностью трест «Башнефтепромстрой» ","ООО трест «БНПС»","0253009371","2009-06-19",{"$f":"G30+I30","v":150000},150000,2,0,0]
[28,"Общество с ограниченной ответственностью «АрхСтройПроект»","ООО «АрхСтройПроект»","0264051336","2009-06-19",{"$f":"G31+I31","v":150000},150000,2,0,0]
[29,"Общество с ограниченной ответственностью «Энергоинновация»","ООО «Энергоинновация»","0278056574","2009-06-19",1000000,500000,3,350000,2]
[30,"Муниципальное унитарное предприятие «Архитектурно-планировочное бюро»городского округа город Уфа Республики Башкортостан","МУП «АПБ» г. Уфы","0277013970","2009-06-19",250000,50000,1,150000,1]
[31,"Общество с ограниченной ответственностью «Белебеевский  водоканал»","ООО «Белводоканал»","0255014715","2009-07-14",{"$f":"G34+I34","v":150000},150000,2,0,0]
[32,"Общество с ограниченной ответственностью «Инженерный центр энергетики Башкортостана»","ООО «ИНЦЭБ»","0278151394","2009-07-14",1500000,1000000,4,350000,2]
[33,"Общество с ограниченной ответственностью «ИНТЕГРАЛ-ПРОЕКТ»","ООО «Интеграл-Проект»","0275047148","2009-07-28",{"$f":"G36+I36","v":150000},150000,2,0,0]
[34,"Общество с ограниченной ответственностью «Стройпроект»","ООО «Стройпроект»","0274134278","2009-08-18",250000,50000,1,150000,1]
[35,"Открытое акционерное общество Проектный институт «Башкиргражданпроект»","ОАО ПИ «Башкиргражданпроект»","0275002940","2009-08-18",1000000,500000,3,350000,2]
[36,"Общество с ограниченной ответственностью «Югранефтегазпроект»","ООО «Югранефтегазпроект»",8604034825,"2009-09-08",1000000,500000,3,350000,2]
[37,"Общество с ограниченной ответственностью «Научно – производственное объединение «Огнезащита»","ООО НПО «Огнезащита»","0276064467","2009-09-22",150000,50000,1,150000,1]
[38,"Общество с ограниченной ответственностью «Научно – исследовательский и проектный институт по обустройству нефтяных и газовых месторождений»","ООО «НИПИ ОНГМ»","0278154564","2009-10-13",1500000,500000,3,2500000,3]
[39,"Общество с ограниченной ответственностью «Газтехтрейд»","ООО «Газтехтрейд»","5905248254","2009-10-13",{"$f":"G42+I42","v":150000},150000,2,0,0]
[40,"Общество с ограниченной ответственностью «Георекон»","ООО «Георекон»","0276059499","2009-10-27",{"$f":"G43+I43","v":500000},150000,2,350000,2]
[41,"Общество с ограниченной ответственностью «Спецпроект»","ООО «Спецпроект»","0278089820","2009-11-10",250000,50000,1,150000,1]
[42,"Общество с ограниченной ответственностью «Производственно-коммерческая фирма «МАСТЕР-СЕРВИС»","ООО «ПКФ «Мастер-Сервис»","5615018788","2009-11-10",{"$f":"G45+I45","v":150000},150000,2,0,0]
[43,"Муниципальное унитарное предприятие управление архитектуры и градостроительства по Ишимбайско-му району Республики Башкортостан","МУП УА и Г по Ишимбайскому району РБ","0261000816","2009-11-10",150000,50000,1,150000,1]
[44,"Муниципальное унитарное предприятие «Архитектура и градостроительство муниципального района  Белорецкий район Республики Башкортостан»","МУП «А и Г МР Белорецкий район РБ»","0256020736","2009-11-10",150000,50000,1,150000,1]
[45,"Акционерное общество «Монтажно–технологическое управление «Кристалл»","АО МТУ «Кристалл»","0252000175","2009-11-10",150000,50000,1,150000,1]
[46,"Общество с ограниченной ответственностью «Оренбургнефтепроект»","ООО «Оренбургнефтепроект»",5610068922,"2009-11-10",250000,50000,1,150000,1]
[47,"Государственное Унитарное предприятие Уфимский проектно-производственный центр «Уралдортранс» Республики Башкортостан","ГУП «Уралдортранс» РБ","0278010273","2009-11-24",1000000,500000,3,350000,2]
[48,"Акционерное общество«Учалинский горно - обогатительный комбинат»","АО «Учалинский ГОК»","0270007455","2009-11-24",{"$f":"G51+I51","v":150000},150000,2,0,0]
[49,"Общество с ограниченной ответственностью «ГарантПроектСервис»","ООО «ГарантПроект-Сервис»","0274097989","2009-11-24",{"$f":"G52+I52","v":500000},150000,2,350000,2]
[50,"Публичное акционерное общество «Акционерная компания Востокнефтезаводмонтаж»","ПАО «АК ВНЗМ»","0277015293","2009-11-24",1500000,1000000,4,350000,2]
[51,"Закрытое акционерное общество «Татпромтехпроект»","ЗАО «Татпромтехпроект»",1659083882,"2009-12-01",150000,50000,1,150000,1]
[52,"Общество с ограниченной ответственностью «Сигмастрой»","ООО «Сигмастрой»","0274103914","2009-12-08",{"$f":"G55+I55","v":150000},150000,2,0,0]
[53,"Общество с ограниченной ответственностью Проектно-строительная фирма «Экво»","ООО ПСФ «ЭКВО»","0278095990","2009-12-08",{"$f":"G56+I56","v":150000},150000,2,0,0]
[54,"Общество с ограниченной ответственностью «ГлавРосСтрой»","ООО «ГлавРосСтрой»","6316097984","2009-12-08",{"$f":"G57+I57","v":500000},150000,2,350000,2]
[55,"Общество с ограниченной ответственностью «Проект – центр»","ООО «Проект-центр»","0264057360","2009-12-15",{"$f":"G58+I58","v":150000},150000,2,0,0]
[56,"Общество с ограниченной ответственностью «Стройзаказчик» городского округа город Стерлитамак","ООО «Стройзаказчик»","0268073370","2009-12-15",150000,50000,1,150000,1]
[57,"Открытое акционерное общество «Оренбургский научно –исследовательский и проектный институт нефти» ","ОАО «ОренбургНИПИнефть»",5610044921,"2009-12-22",150000,50000,1,150000,1]
[58,"Общество с ограниченной ответственностью «Оренбургский научно –исследовательский и проектный институт нефти»","ООО «ОренбургНИПИнефть»",5610089954,"2009-12-22",250000,50000,1,150000,1]
[59,"Общество с ограниченной ответственностью «Генпроект»","ООО «Генпроект»","0276068398","2009-12-22",250000,50000,1,0,0]
[60,"Общество с ограниченной ответственностью «Новойл-Автоматика»","ООО «Новойл-Автоматика»","0277052721","2009-12-22",{"$f":"G63+I63","v":150000},150000,2,0,0]
[61,"Общество с ограниченной ответственностью «Поларис»","ООО «Поларис»","0278118319","2009-12-22",150000,50000,1,0]
[62,"Общество с ограниченной ответственностью «Архитектурно-проектная  студия «Крафт»","ООО АПС «Крафт»","0274139950","2009-12-22",150000,50000,1,150000,1]
[63,"Общество с ограниченной ответственностью «Технологии и Коммуникации»","ООО «Техком»","0278103560","2009-12-28",250000,50000,1,150000,1]
[64,"Общество с ограниченной ответственностью «Геореконпроект»","ООО «Геореконпроект»","0276106340","2009-12-28",250000,150000,2,150000,1]
[65,"Общество с ограниченной ответственностью «Технология»","ООО «Технология»",1835083827,"2009-12-28",500000,500000,3,150000,1]
[66,"Общество с ограниченной ответственностью «Промгражданпроект»","ООО «Промгражданпроект»","0277003523","2009-12-28",150000,50000,1,0,0]
[67,"Акционерное обшество «Инженерная компания «Квантор»","АО «ИК «Квантор»","0276040956","2009-12-28",{"$f":"G70+I70","v":500000},150000,2,350000,2]
[68,"Акционерное общество «Башкоммунприбор»","ОАО «Башкоммунприбор»","0276090668","2009-12-28",250000,50000,1,150000,1]
[69,"Общество с ограниченной ответственности «Архитектор»","ООО «Архитектор»","0267021192","2009-12-28",{"$f":"G72+I72","v":150000},150000,2,0,0]
[70,"Муниципальное унитарное предприятие «Стройзаказчик» муниципального района Мелеузовский район Республики Башкортостан","МУП «Стройзаказчик»  муниципального района Мелеузовский р-н РБ","0263009130","2009-12-28",150000,50000,1,150000,1]
[71,"Общество с ограниченной ответственностью «Проектная мастерская «АРХИТЕК»","ООО «Проектная мастерская «Архитек»","5611050188","2009-12-28",{"$f":"G74+I74","v":500000},150000,2,350000,2]
[72,"Муниципальное унитарное предприятие «Архитектура и градостроительство» района Белебеевский район Республики Башкортостан ","МУП «А и Г» мр Белебеевский район  РБ","0255013895","2009-12-28",150000,50000,1,150000,1]
[73,"Общество с ограниченной ответственностью Научно-производственная  фирма «Экситон-автоматика»","ООО НПФ «Экситон-Автоматика»","0278085342","2009-12-28",{"$f":"G76+I76","v":150000},150000,2,0,0]
[74,"ООО «Строительный трест «Метако»","ООО «Трест «Метако»","0274059542","2009-12-28",150000,50000,1,0,0]
[75,"Общество с ограниченной ответственностью «Башнефть-Добыча»","ООО «Башнефть-Добыча»","0277106840","2009-12-28",{"$f":"G78+I78","v":150000},150000,2,0,0]
[76,"Общество с ограниченной ответственностью «Системы связи и безопасности»","ООО «ССБ»","0274127866","2010-01-19",{"$f":"G79+I79","v":150000},150000,2,0,0]
[77,"Закрытое акционерное общество «Автоматика»","ЗАО «Автоматика»","0272009063","2010-01-19",{"$f":"G80+I80","v":150000},150000,2,0,0]
[78,"Общество с ограниченной ответственностью «Проектно - конструкторский центр «АВИПРОМ»","ООО ПКЦ «АВИПРОМ»",5904215746,"2010-01-19",150000,50000,1,150000,1]
[79,"Общество с ограниченной ответственностью проектно-наладочное предприятие «Башпроектпромвентиляция»","ООО «Башпроектпромвентиляция»","0277139210","2010-01-19",150000,50000,1,150000,1]
[80,"Государственное унитарное предприятие «Башкирский научно – исследовательский и проектно – конструкторский институт нефтяного машиностроения»","ГУП «БашНИИнефтемаш»","0278002554","2010-01-19",250000,50000,1,150000,1]
[81,"Общество с ограниченной ответственностью «Энергия»","ООО «Энергия»","0278107300","2010-01-26",150000,50000,1,150000,1]
[82,"Общество с ограниченной ответственностью «Центрпроект»","ООО «Центрпроект»","0274073201","2010-01-26",{"$f":"G85+I85","v":500000},150000,2,350000,2]
[83,"Открытое акционерное общество «Салаватстекло»","ОАО «Салаватстекло»","0266004050","2010-01-26",{"$f":"G86+I86","v":150000},150000,2,0,0]
[84,"Непубличное акционерное общество «СибКом»","АО «СибКом»","0278095326","2010-02-02",150000,50000,1,150000,1]
[85,"Общество с ограниченной ответственностью «Экосервис»","ООО «Экосервис»","0264021300","2010-02-02",{"$f":"G88+I88","v":150000},150000,2,0,0]
[86,"Публичное акционерное общество «Башинформсвязь»","ПАО «Башинформсвязь»","0274018377","2010-02-16",{"$f":"G89+I89","v":150000},150000,2,0,0]
[87,"Общество с ограниченной ответственностью Строительная Компания «Уралсантехремстрой»","ООО СК «Уралсантехрем-строй»","0276115016","2010-02-16",150000,150000,2,0,0]
[88,"Общество с ограниченной ответственностью «Спецавтоматика-Защита»","ООО «Спецавтоматика-Защита»","0276043467","2010-02-16",150000,50000,2,150000,2]
[89,"Общество с ограниченной ответственностью «Рамруградпроект»","ООО «РРГ Проект»","0274135970","2010-03-02",250000,50000,1,150000,1]
[90,"Общество с ограниченной ответственностью «РайПроект»","ООО «РайПроект»","0242008746","2010-03-02",150000,50000,1,150000,1]
[91,"Общество с ограниченной ответственностью «Проект-Мастер»","ООО «Проект-Мастер»","0278107797","2010-03-02",{"$f":"G94+I94","v":500000},150000,2,350000,2]
[92,"Закрытое акционерное общество «Нефтемонтаждиагностика»","ЗАО «НМД»","0277010224","2010-03-16",150000,50000,1,150000,1]
[93,"Общество с ограниченной ответственностью Монтажно-технический центр «Технология безопасности»","ООО МТЦ «Технология безопасности»","0278098221","2010-03-16",250000,50000,1,150000,1]
[94,"Акционерное общество «Уральская Сталь»","АО «Уральская Сталь»","5607019523","2010-03-16",{"$f":"G97+I97","v":150000},150000,2,0,0]
[95,"Муниципальное унитарное предприятие «Проектировщик» муниципального района Бакалинский район Республики Башкортостан«","МУП «Проектировщик» муниципального района Бакалинский район РБ","0207000286","2010-03-16",150000,50000,1,150000,1]
[96,"Общество с ограниченной ответственностью  «Арт-Проект»","ООО «Арт-Проект»","0269017392","2010-03-30",{"$f":"G99+I99","v":150000},150000,2,0,0]
[97,"Общество с ограниченной ответственностью  «АльфаПроектУфа»","ООО «Альфа Проект Уфа»","0274145551","2010-03-30",150000,50000,1,0,0]
[98,"Муниципальное унитарное предприятие «Архитектурно-планировочное бюро« муниципального района Мелеузовский район Республики Башкортостан","МУП «АПБ» муниципального района Мелеузовский район РБ","0263007775","2010-03-30",150000,50000,1,150000,1]
[99,"Общество с ограниченной ответственностью «Уфанефтемаш»","ООО «Уфанефтемаш»","0278135755","2010-04-13",1000000,500000,3,350000,2]
[100,"Муниципальное унитарное предприятие «Межхозяйственный хозрасчетный отдел капитального строительства« Альшеевского района Республика Башкортостан","МУП МХ ОКС","0202004061","2010-04-13",{"$f":"G103+I103","v":150000},150000,2,0,0]
[101,"Акционерное общество «Форт Диалог»","АО «Форт Диалог»","1650006259","2010-04-13",{"$f":"G104+I104","v":500000},150000,2,350000,2]
[102,"Общество с ограниченной ответственностью «ГазДизайн»","ООО «ГазДизайн»","0278154363","2010-04-13",150000,50000,1,0,0]
[103,"Общество с ограниченной ответственностью «ЭнергОм»","ООО «ЭнергОм»","0273078060","2010-04-27",150000,50000,1,150000,1]
[104,"Общество с ограниченной ответственностью  «Астра»","ООО «Астра»","0269016920","2010-04-27",{"$f":"G107+I107","v":150000},150000,2,0,0]
[105,"Муниципальное унитарное предприятие «Архитектурно – планировочное бюро» городского округа г. Салават Республики Башкортостан","МУП АПБ г. Салавата","0266021520","2010-05-18",{"$f":"G108+I108","v":150000},150000,2,0,0]
[106,"Государственное унитарное предприятие Научно-исследовательский институт безопасности жизнедеятельности Республики Башкортостан","ГУП НИИ БЖД РБ","0278015994","2010-05-18",250000,50000,1,150000,1]
[107,"Общество с ограниченной ответственностью «Автоматика-проект»","ООО «А-проект»","0273068336","2010-05-25",{"$f":"G110+I110","v":150000},150000,2,0,0]
[108,"Общество с ограниченной ответственностью «Эквилон Гео»","ООО «Эквилон Гео»","0277106286","2010-05-25",250000,50000,1,150000,1]
[109,"Общество с ограниченной ответственностью «Производственно-технический центр»","ООО «Производственно-технический центр»","0253015921","2010-06-08",150000,50000,1,0,0]
[110,"Общество с ограниченной ответственностью «Архитектурное бюро «Проспект»","ООО АБ «Проспект»","0278165252","2010-06-30",{"$f":"G113+I113","v":150000},150000,2,0,0]
[111,"Общество с ограниченной ответственностью «Научно-производственная фирма «Теплофизика»","ООО «НПФ «Теплофизика»","0274023585","2010-08-19",150000,50000,1,150000,1]
[112,"Общество с ограниченной ответственностью «Техническая диагностика»","ООО «Техническая диагностика»","0278161402","2010-09-07",150000,50000,1,150000,1]
[113,"Общество с ограниченной  ответственностью Проектный институт АС-Проект","ООО ПИ АСП","0275066944","2010-09-28",{"$f":"G116+I116","v":500000},150000,2,350000,2]
[114,"Общество с ограниченной ответственностью «СТРОЙМЕХПРОЕКТ-П»","ООО «СТРОЙМЕХПРОЕКТ-П»","7708186845","2010-10-12",1500000,1000000,4,350000,2]
[115,"Акционерное общество Центр противопо-жарной  защиты «Арсенал-01»","АО ЦПЗ «Арсенал-01»","0276089609","2010-11-01",150000,150000,2,0,0]
[116,"Общество с ограниченной ответственностью Научно Производственная Фирма «Южный Урал»","ООО НПФ «Южный Урал»","0278151235","2010-11-17",{"$f":"G119+I119","v":150000},150000,2,0,0]
[117,"Общество с ограниченной ответственностью «Архпроект»","ООО «Архпроект»","0278171217","2010-12-01",250000,150000,2,0,0]
[118,"Муниципальное бюджетное учреждение «Служба заказчика и технического надзора по благоустройству городского округа город Уфа Республики Башкортостан","МБУ СЗ и ТНБ г. Уфы","0278164675","2010-12-22",{"$f":"G121+I121","v":150000},150000,2,0,0]
[119,"Открытое акционерное общество «Синтез-Каучук»","ОАО «Синтез-Каучук»","0268036071","2010-12-28",{"$f":"G122+I122","v":150000},150000,2,0,0]
[120,"Общество с ограниченной ответственностью «Теплоэнерго»","ООО «Теплоэнерго»","0255012154","2011-04-05",{"$f":"G123+I123","v":150000},150000,2,0,0]
[121,"Муниципальное унитарное предприятие «Инвестиционно-строительный комитет г. Уфы»","МУП «ИСК г. Уфы»","0278065064","2011-05-24",250000,150000,2,0,0]
[122,"Закрытое акционерное общество «ТРЕСТНЕФТЕХИМ»","ЗАО «ТРЕСТНЕФТЕХИМ»","6312083878","2011-07-26",150000,0,0,0,0]
[123,"Общество с ограниченной ответственностью «КООРДИНАЦИЯ»","ООО «КООРДИНАЦИЯ»","0273073350","2011-11-02",{"$f":"G126+I126","v":150000},150000,2,0,0]
[124,"Общество с ограниченной ответственностью «Архитектурная творческая мастерская ПРОЕКТ-ГРУПП","ООО «АТМ ПРОЕКТ-ГРУПП»","0268056159","2011-11-02",{"$f":"G127+I127","v":150000},150000,2,0,0]
[125,"Федеральное государственное бюджетное образовательное учреждение высшего образования «Башкирский государственный университет»","БашГУ","0274011237","2011-11-22",150000,50000,1,150000,1]
[126,"Муниципальное унитарное предприятие электрических сетей городского округа город Салават, Республики Башкортостан ","МУПЭС г. Салават","0266005575","2011-12-05",{"$f":"G129+I129","v":150000},150000,2,0,0]
[127,"Общество с ограниченной ответственностью «Конструктив-Проект»","ООО «Конструктив-Проект»","0276135830","2011-12-27",150000,150000,2,0,0]
[128,"Общество с ограниченной ответственностью Инженерно-Экспертный центр «Трубопроводсервис»","ООО ИЭЦ «Трубопроводсервис»","0278126630","2011-12-27",500000,150000,2,350000,2]
[129,"Общество с ограниченной ответственностью «Специализированные системы»","ООО «СпецСистемы»","0275041097","2012-01-25",150000,150000,2,0,0]
[130,"Общество с ограниченной ответственностью «Проектно –экспертный центр «Союз»","ООО «ПЭЦ «Союз»","0274115050","2012-01-31",150000,150000,2,0,0]
[131,"Общество с ограниченной ответственностью экспертное монтажно-наладочное предприятие «УМНЭКС»","ООО ЭМНП «УМНЭКС»","0270012857","2012-02-15",150000,50000,1,150000,1]
[132,"Общество с ограниченной ответственностью Научно-Производственный Центр «УралЭнергоРесурс»","ООО НПЦ «УралЭнергоРесурс»","0276130529","2012-02-15",250000,50000,1,150000,1]
[133,"Непубличное акционерное общество «Башкирское шахтопроходческое управление","НАО «БШПУ»","0267005730","2012-02-28",150000,150000,2,0,0]
[134,"Общество с ограниченной ответственностью «Башгипроагропром»","ООО «Башгипроагропром»","0278185844","2012-03-06",150000,50000,1,150000,1]
[135,"Общество с ограниченной ответственностью «Инженерный центр «ЭлПро»","ООО «ИЦ «ЭлПро»","0276137771","2012-03-28",150000,50000,1,150000,1]
[136,"Общество с ограниченной ответственностью «АлеКо»","ООО «АлеКо»","0278186044","2012-04-02",150000,150000,2,0,0]
[137,"Общество с ограниченной ответственностью Проектно-изыскательский институт «АС-Проект»","ООО ПИИ АСП","0274166150","2012-05-28",500000,150000,2,350000,2]
[138,"Общество с ограниченной ответственностью «ГеоСтройПроект»","ООО «ГеоСтройПроект»","0264057440","2012-08-07",150000,50000,1,0,0]
[139,"Общество с ограниченной ответственностью «Союз-Проект»","ООО «Союз-Проект»","0276139521","2012-08-27",250000,50000,1,150000,1]
[140,"Общество с ограниченной ответственностью «ГСИ Спецнефтеэнергомонтажавтоматика»","ООО «ГСИ СНЭМА»","0278169779","2012-09-11",150000,150000,2,0,0]
[141,"Акционерное общество с ограниченно ответственностью ФОСТЕР+ПАРТНЕРЗ ЛИМИТЕД","«Фостер+Партнерз»","0740413959","2012-09-20",150000,150000,2,0,0]
[142,"Общество с ограниченной ответственностью«Башкирские распредилительные тепловые сети»","ООО «БашРТС»","0277072661","2012-10-10",150000,150000,2,0,0]
[143,"Общество с ограниченной ответственностью «Институт современного проектирования»","ООО «ИНСП»","0276141898","2012-10-30",1000000,500000,3,350000,2]
[144,"Общество с ограниченной ответственностью «Регион-Эксперт»","ООО «Регион-Эксперт»","0274157652","2012-11-13",150000,150000,2,0,0]
[145,"Общество с ограниченной ответственностью «Негосударственная экспертиза»","ООО «Негосударственная экспертиза»","0274140850","2012-11-20",150000,150000,2,0,0]
[146,"Общество с ограниченной ответственностью Архитектурно-строительная корпорация «АрхиТэк»","ООО АСК «АрхиТэк»","0276133512","2012-12-11",150000,150000,2,0,0]
[147,"Общество с ограниченной ответственностью «Уфимский Научно-Технический Центр»","ООО «Уфимский НТЦ»","0278082790","2013-01-10",150000,50000,1,0,0]
[148,"Общество с ограниченной ответственностью «Научно-производственной предприятие «Нефтегазинжиниринг»","ООО «НПП «Нефтегазинжиниринг»","0278093583","2013-01-15",500000,50000,1,150000,1]
[149,"Общество с ограниченной ответственностью Архитектурное бюро  «Эйбл»","ООО АБ «Эйбл»","0278188161","2013-01-29",150000,150000,2,0,0]
[150,"Общество с ограниченной ответственностью «Уральские ПроектноКонструкторские Работы»","ООО «УПКР»","0278195095","2013-02-05",150000,150000,2,0,0]
[151,"Общество с ограниченной ответственностью «Строительная фирма №3»","ООО «СФ № 3»","0269022392","2013-03-05",150000,150000,2,0,0]
[152,"Общество с ограниченной ответственностью «Роспроектизыскания»","ООО «Роспроектизыскания»","0274122321","2013-03-05",150000,50000,1,150000,1]
[153,"Закрытое акционерное общество «ПРОЕКТ-М»","ЗАО «ПРОЕКТ-М»","0274073032","2013-03-19",150000,150000,2,0,0]
[154,"Открытое акционерное общество «Белорецкий металлургический комбинат»","ОАО «БМК»","0256006322","2013-04-09",150000,150000,2,0,0]
[155,"Общество с ограниченной ответственностью «ГК «Георекон»","ООО ГК «Георекон»","0276146342","2013-04-09",500000,150000,2,350000,2]
[156,"Общество с ограниченной ответственностью «Башкирские распределительные электрические сети»","ООО «Башкирэнерго»","0277071467","2013-04-09",150000,150000,2,0,0]
[157,"Общество с ограниченной ответственностью «Энергостройкомплект»","ООО «Энергостройкомплект»","0265015771","2013-05-14",150000,150000,2,0,0]
[158,"Общество с ограниченной ответственностью «Шахтостроительное управление","ООО «ШСУ»","0270019718","2013-05-23",150000,150000,2,0,0]
[159,"Общество с ограниченной ответственностью «Архитектурное Бюро»","ООО «АрхБюро»","0278192217","2013-06-07",150000,150000,2,0,0]
[160,"Общество с ограниченной ответственностью «ГЕОМЕТРИЯ ПРОСТРАНСТВА+»","ООО «ГЕОМЕТРИЯ ПРОСТРАНСТВА+»","0278195962","2013-06-07",150000,150000,2,0,0]
[161,"Общество с ограниченной ответственностью «Гражданстройпроект»","ООО «Гражданстройпроект»","0275080018","2013-06-25",250000,50000,1,150000,1]
[162,"Общество с ограниченной ответственностью трест «Башгражданстрой»","ООО трест «БГС»","0274100286","2013-08-15",250000,50000,1,150000,1]
[163,"Общество с ограниченной ответственностью «Фирма «Бонус»","ООО «Фирма «Бонус»","0274063789","2013-08-15",250000,50000,1,150000,1]
[164,"Общество с ограниченной ответственностью Проектно-конструкторское бюро «АВАНГАРД»","ООО ПКБ «АВАНГАРД»","0277130578","2013-08-15",150000,150000,2,0,0]
[165,"Общество с ограниченной ответственностью «Башкирская медь»","ООО «Башкирская медь»","0267011229","2013-11-09",150000,150000,2,0,0]
[166,"Общество с ограниченной ответственностью «СтройРемПроект»","ООО «СтройРемПроект»","0276150187","2014-01-24",150000,150000,2,0,0]
[167,"Общество с ограниченной ответственностью «СТРОЙТЭМ»","ООО «СТРОЙТЭМ»","0274182610","2014-03-27",250000,50000,1,150000,1]
[168,"Общество с ограниченной ответственностью Производственное предприятие «Уфатепломонтаж»","ООО ПП «Уфатепломонтаж»","0273043821","2014-04-03",150000,50000,1,150000,1]
[169,"Общество с ограниченной ответственностью «Пангея»","ООО «Пангея»","0276093933","2014-05-29",150000,50000,1,150000,1]
[170,"Общество с ограниченной ответственностью «Проектно-конструкторская фирма»","ООО «ПКФ»","0275082826","2014-06-20",150000,50000,1,150000,1]
[171,"Общество с ограниченной ответственностью «СК Версаль»","ООО «СК Версаль»»","0276145701","2014-08-29",150000,50000,1,150000,1]
[172,"Общество с ограниченной ответственностью «Проектное бюро по обустройству нефтяных и газовых месторождений","ООО ПБ ОНГМ","0278214661","2014-09-17",250000,150000,2,350000,2]
[173,"Общество с ограниченной ответственностью Научно-Производственный Центр «Балт ЭнергоРесурс»","ООО НПЦ «БалтЭнергоРесурс»",7814534332,"2014-10-23",150000,50000,1,150000,1]
[174,"Общество с ограниченной ответственностью «Научно-исследовательский и проектный институт Уфимского государственного нефтяного технического университета","ООО «НИПИ УГНТУ»","0277126003","2014-11-07",250000,150000,2,350000,2]
[175,"Общество с ограниченной ответственностью «Ишимбайская проектная мастерская»","ООО «ИПМ»","0261021887","2014-12-03",150000,150000,2,0,0]
[176,"Акционерное общество «Стена»","АО «Стена»","0278085007","2014-12-03",150000,50000,1,150000,1]
[177,"Общество с ограниченной ответственностью «РЕМЭКС»","ООО «РЕМЭКС»","0277089249","2014-12-30",150000,150000,2,0,0]
[178,"Общество с ограниченной ответственностью «Каскад»","ООО «Каскад»","0274127841","2015-01-26",150000,150000,2,0,0]
[179,"Открытое акционерное общество «УФАОРГСИНТЕЗ»","ОАО «Уфаоргсинтез»","0277014204","2015-03-16",150000,150000,2,0,0]
[180,"Общество с ограниченной ответственностью «Башжилкоммунстройпроект»","ООО «Башжилкоммунстройпроект»","0261022785","2015-05-19",150000,50000,1,150000,1]
[181,"Общество с ограниченной ответственностью Проектное бюро «АрхиметриЯ»","ООО Проектное бюро «АрхиметриЯ»","5609088314","2015-05-29",{"$f":"G184+I184","v":150000},150000,2,0,0]
[182,"Муниципальное унитарное предприятие «Архитектура и градостроительство» муниципального района Янаульский район","МУП «АиГ» МР Янаульский район РБ","0271007747","2015-06-22",150000,150000,2,0,0]
[183,"Индивидуальный предприниматель Яксин Анатолий Константинович","ИП Яксин А.К.","027602861450","2009-06-19",150000,150000,2,0,0]
[184,"Индивидуальный предприниматель Донгузов Константин Александрович","ИП Донгузов К.А","027717906041","2009-06-19",150000,50000,1,150000,1]
[185,"Индивидуальный предприниматель Кирайдт Рудольф Иванович","ИП Кирайдт Р.И.","027811416943","2009-06-19",150000,150000,2,0,0]
[186,"Общество с ограниченной ответственностью «Фирма комплексного строительства»","ИП Ишмухаметов Б.Х.","021402301500","2017-03-30","-",50000,1,0,0]
[187,"Общество с ограниченной ответственностью «Изотерм +»","ООО «ФКС»","0277074620","2015-08-04",150000,150000,2,0,0]
[188,"Общество с ограниченной ответственностью «ЭкспертПроект»","ООО «Изотерм +»","0273086582","2015-08-25",150000,50000,1,150000,1]
[189,"Общество с ограниченной ответственностью «Электроматериалы»","ООО «ЭкспертПроект»","0272901700","2015-09-23",150000,50000,1,150000,1]
[190,"Общество с ограниченной ответственностью «Строительная инженерия»","ООО «Электроматериалы»","0275035022","2015-11-03",150000,50000,1,150000,1]
[191,"Общество с ограниченной ответственностью «ДорГеоСервис»","ООО «Строительная инженерия»","0275900246","2015-11-03",250000,50000,1,150000,1]
[192,"Общество с ограниченной ответственностью «ПИИ «Нефтегазстройпроект»","ООО «ДорГеоСервис»","0277128314","2015-11-05",150000,50000,1,150000,1]
[193,"Федеральное казенное предприятие «Авангард»","ООО «ПИИ «НГСП»","0278907289","2015-11-16",250000,50000,1,150000,1]
[194,"Акционерное Общество «Уфимский завод эластомерных материалов, изделий и конструкций»","ФКП «Авангард»","0268005588","2015-12-14",150000,50000,1,150000,1]
[195,"Общество с ограниченной ответственностью «Октаннефтепроект»","ГУП ПКИ «БПСП»","0277005190","2016-02-15",150000,50000,1,150000,1]
[196,"Общество с ограниченной ответственностью «Альфа-проект +»","АО «УЗЭМИК»","0252000048","2016-02-19",{"$f":"G199+I199","v":150000},150000,2,0,0]
[197,"Общество с ограниченной ответственностью «ЭкоДор»","ООО «Октаннефтепроект»","0274910717","2016-03-02",150000,50000,1,0,0]
[198,"Общество с ограниченной ответственностью «Нефтегазпроект-Сервис»","ООО «Альфа-проект +»","0278210314","2016-03-02",150000,150000,2,0,0]
[199,"Государственное унитарное предприятие «Проектный и конструкторский институт «Башкирский Промстройпроект»","ООО «ЭкоДор»","0278210314","2016-03-25",150000,50000,1,150000,1]
[200,"Общество с ограниченной ответственностью «Научное производственное предприятие «Техпроект»","ООО «Нефтегазпроект-Сервис»","0278165213","2016-03-24",150000,150000,2,0,0]
[201,"Общество с ограниченной ответственностью «ВЭМ»","ООО «НПП «Техпроект»","0278117040","2016-10-10",500000,150000,2,350000,2]
[202,"Государственное казенное учреждение Республики Башкортостан Управление по эксплуатации гидротехнических сооружений","ООО «ВЭМ»","0275086997","2016-10-18",150000,50000,1,0,0]
[203,"Общество с ограниченной ответственностью «Зафира»","ГКУ РБ Управление по эксплуатации ГТС","0232007398","2016-11-10",150000,50000,1,0,0]
[204,"Общество с ограниченной ответственностью «Агромонтаж - сервис»","ООО «Зафира»","0274917800","2016-12-19","-",50000,1,0,0]
[205,"Муниципальное бюджетное учреждение «Центр городского дизайна» городского округа город Уфа Республики Башкортостан","ООО «Агромонтаж-сервис»","0225010270","2016-12-23","-",50000,1,0,0]
[206,"Общество с ограниченной ответственностью «Компаньон»","МБУ ЦГД г. Уфы","0277136403","2017-01-09","-",50000,1,0,0]
[207,"Общество с ограниченной ответственностью «ВЕСТА»","ООО «Компаньон»","0277119729","2017-02-01",1000000,500000,3,350000,2]
[208,"Индивидуальный предприниматель Ишмухаметов Булат Ханифович","ООО «ВЕСТА»","0269997712","2017-03-13","-",50000,1,0,0]
[209,"Государственное унитарное предприятие Бюро технической инвентаризации Республики Башкортостан","ГУП БТИ Республики Башкортостан","0274079771","2017-04-21","-",50000,1,0,0]
[210,"Общество с ограниченной ответственностью «Управляющая компания «Старый Кремль»","ГУП ПКИ «Башкирский ПСП»","0277005190","2009-06-19",250000,250000,"-",0,0,"2015-10-01"," п.2 ч.2 ст. 55.7 ГрК "]
[211,"Индивидуальный предприниматель Саттаров Альмир Разимович","ООО «ПСП «МАИС»","0274012939","2009-06-19",150000,150000,"-",0,0,"2016-10-03","п. 1 ч. 1 ст. 55.7 ГрК",null,null,null,150000]
[212,"Общество с ограниченной ответственностью «Уфагазэнергопроект»","ЗАО «Генпроект»","0277092690","2009-06-19",250000,250000,"-",0,0,"2016-11-24","п. 1 ч. 1 ст. 55.7 ГрК"]
[213,"Общество с ограниченной ответственностью «Артстудия «Проект»","ООО «ПФ «АРХ»","0278119714","2009-06-19",150000,150000,"-",0,0,"2016-05-05","п. 1 ч. 1 ст. 55.7 ГрК"]
[214,"Общество с ограниченной ответственностью ИЦ «АС-Проект»","ООО «РАУМ Арчитектс»","0274106351","2009-06-19",150000,150000,"-",0,0,"2016-04-07"," п.2 ч.2 ст. 55.7 ГрК"]
[215,"Открытое акционерное общество «Проектно-конструкторский технологический институт «Уралтрубопроводстройпроект»","ООО «Квадр»","0278100248","2009-06-19",150000,150000,"-",0,0,"2016-06-06","п. 1 ч. 1 ст. 55.7 ГрК"]
[216,"Общество с ограниченной ответственностью «Новойл-Энерго»","ООО «М.АРТ»","0274130160","2009-06-19",250000,250000,"-",0,0,"2015-10-01"," п.2 ч.2 ст. 55.7 ГрК"]
[217,"Общество с ограниченной ответственностью Институт «СтройПроект»","ООО «Нефтегазпроект»","0276122172","2009-12-08",1000000,1000000,"-",0,0,"2016-12-09"," п.2 ч.2 ст. 55.7 ГрК"]
[218,"Общество с ограниченной ответственностью «Синтез-ремонт»","ООО «УралНИПИнефть»","5611053439","2009-12-22",150000,150000,"-",0,0,"2016-04-01","п. 1 ч. 1 ст. 55.7 ГрК"]
[219,"Общество с ограниченной ответственностью «Монолит-Проект»","ЗАО «ПТЦ «Мир»","0273068745","2009-12-22",150000,150000,"-",0,0,"2015-08-27","п. 1 ч. 1 ст. 55.7 ГрК"]
[220,"Общество с ограниченной ответственностью «Башстройэкология»","ООО «УЯРУС»","0274105260","2009-12-28",150000,150000,"-",0,0,"2016-10-06","п. 1 ч. 1 ст. 55.7 ГрК",null,null,null,150000]
[221,"Общество с ограниченной ответственностью «Эмикс»","ООО Компания «АРХСТРОЙИНВЕСТ»","0278137872","2009-12-28",150000,150000,"-",0,0,"2015-10-01"," п.2 ч.2 ст. 55.7 ГрК"]
[222,"Общество с ограниченной ответственностью «Алтын-Дизайн»","ООО «ТВС+»","0253007769","2010-01-19",150000,150000,"-",0,0,"2015-09-16","п. 1 ч. 1 ст. 55.7 ГрК"]
[223,"Общество с ограниченной ответственностью «Инженерно-архитектурный центр» дочернее хозяйственное общество закрытого акционерного общества творческой архитектурной фирмы «Архпроект» Союза архитекторов Республики Башкортостан","ЗАО «Флагман»","0273068738","2010-02-02",150000,150000,"-",0,0,"2016-06-01","п. 1 ч. 1 ст. 55.7 ГрК"]
[224,"Общество с ограниченной ответственностью Научно-проектный центр «ДЗЕРЖИНСКПРОЕКТ»","ЗАО «Энергомир»","0273068720","2010-02-02",150000,150000,"-",0,0,"2015-12-24","п. 1 ч. 1 ст. 55.7 ГрК"]
[225,"Общество с ограниченной ответственностью «Гольфстрим»","ООО «ИК «УфаГражданПроект»","0276111981","2010-03-16",150000,150000,"-",0,0,"2015-10-01"," п.2 ч.2 ст. 55.7 ГрК"]
[226,"Общество с ограниченной ответственностью «РАТАН»","ООО «Источник»","0242007407","2010-04-13",150000,150000,"-",0,0,"2016-10-06","п. 1 ч. 1 ст. 55.7 ГрК",null,null,null,150000]
[227,"Общество с ограниченной ответственностью «Проектное бюро «Энерго»","ЗАО «Башинвестдом»","0274029001","2010-06-22",150000,150000,"-",0,0,"2015-10-01"," п.2 ч.2 ст. 55.7 ГрК"]
[228,"Закрытое акционерное общество Уфимский институт по проектированию водопроводов и канализации «Коммунводоканалпроект»","ООО «Уралрегионстрой»","0277052859","2010-12-28",150000,150000,"-",0,0,"2015-10-01"," п.2 ч.2 ст. 55.7 ГрК"]
[229,"Общество с ограниченной ответственностью Проектно-инвестиционная компания «Башкиргражданпроект»","ООО «Проектная мастерская «А2»","0268058325","2012-01-25",150000,150000,"-",0,0,"2015-09-18","п. 1 ч. 1 ст. 55.7 ГрК"]
[230,"Общество с ограниченной ответственностью «АБ «ЮМАРТ»","ООО «ТермоХольц»","0274021086","2012-05-14",150000,150000,"-",0,0,"2016-01-22","п. 1 ч. 1 ст. 55.7 ГрК"]
[231,"Общество с ограниченной ответственностью «РегионСтройПроект»","ООО ПИК «Гелеон»","0266035925","2012-06-05",150000,150000,"-",0,0,"2015-10-28","п. 1 ч. 1 ст. 55.7 ГрК"]
[232,"Открытое акционерное общество «Сода»","ООО «Сервисная компания «ОЗНА»","8620014618","2012-09-12",150000,150000,"-",0,0,"2015-12-08","п. 1 ч. 1 ст. 55.7 ГрК"]
[233,"Общество с ограниченной ответственностью «Геометрия пространства»","ООО «Ресурс Трейд»","0276139666","2012-10-18",250000,250000,"-",0,0,"2016-04-07"," п.2 ч.2 ст. 55.7 ГрК"]
[234,"Общество с ограниченной ответственностью «Архитектурная мастерская Доминанта»","ООО «БАШПРОЕКТМОНТАЖ»","0276144169","2013-03-19",150000,150000,"-",0,0,"2016-01-22"," п.2 ч.2 ст. 55.7 ГрК"]
[235,"Общество с ограниченной ответственностью Строительное управление «Старый Кремль»","ООО НПЦ «Шэрыкъ»","0266003722","2013-06-07",150000,150000,"-",0,0,"2016-07-29","п. 1 ч. 1 ст. 55.7 ГрК"]
[236,"Общество с ограниченной ответственностью «Инженерное бюро «Аркада»","ООО «АГРОМОНТАЖ-СЕРВИС»","0278165478","2010-01-21",250000,250000,"-",0,0,"2016-12-23","п. 1 ч. 1 ст. 55.7 ГрК"]
[237,"Муниципальное унитарное предприятие «Управление архитектуры и градостроительства» городского округа город Октябрьский РБ","ООО «Уфимская негосударственная экспертиза»","0274156715","2014-03-27",150000,150000,"-",0,0,"2016-12-05","п. 1 ч. 1 ст. 55.7 ГрК"]
[238,"Общество с ограниченной ответственностью «Архитектурно-проектная группа «AP Group»","ООО «ДОРГЕОСЕРВИС»","0277128314","2014-05-29",150000,150000,"-",0,0,"2015-10-01"," п.2 ч.2 ст. 55.7 ГрК"]
[239,"Общество с ограниченной ответственностью НПО «Уфанефтегазпроект»","ИП Дашкин Э.Р.","026307132057","2013-06-07",150000,150000,"-",0,0,"2015-12-22","п. 1 ч. 1 ст. 55.7 ГрК"]
[240,"Общество с ограниченной ответственностью «Акваэконика»","ИП Саттаров А.Р.","025800818862","2009-07-28",0,"-","-",0,0,"2010-09-07","п. 5 ч. 2 ст. 55.7 ГрК",null,null,150000]
[241,"Общество с ограниченной ответственностью «Новые проектные технологии»","ООО «АС-Проект»","0274062834","2009-06-19",150000,150000,"-",0,0,"2010-12-22","п. 1 ч. 1 ст. 55.7 ГрК"]
[242,"Общество с ограниченной ответственностью «Мой дом»","ОАО «ПКТИ «Уралтрубопроводстройпроект»","0276098681","2009-06-19",150000,150000,"-",0,0,"2011-01-18","п. 1 ч. 1 ст. 55.7 ГрК"]
[243,"Общество с ограниченной ответственностью «СтройПроект»","ОАО «ПИ «Стерлитамакгорпроект»","0268036794","2009-06-19",150000,150000,"-",0,0,"2015-04-02"," п.2 ч.2 ст. 55.7 ГрК"]
[244,"Общество с ограниченной ответственностью Производственно-коммерческую фирму «Контур»","ООО «Алтын-Дизайн»","0268030270","2009-06-19",150000,150000,"-",0,0,"2012-01-23","п. 1 ч. 1 ст. 55.7 ГрК"]
[245,"Общество с ограниченной ответственностью «ИНКОТЭМ»","ООО «Архитектурно-проектная группа «AP Group»","0275061992","2009-06-19",150000,150000,"-",0,0,"2014-03-27","п. 1 ч. 1 ст. 55.7 ГрК"]
[246,"Муниципальное унитарное предприятие «Уфимские инженерные сети городского округа город Уфа Республики Башкортостан","ООО «Гражданпроект-Мастерская 5»","0278092597","2009-06-19",150000,150000,"-",0,0,"2015-04-02","п. 1 ч. 1 ст. 55.7 ГрК"]
[247,"Общество с ограниченной ответственностью «СП ВЭМ»","ООО Институт «СтройПроект»","0274102974","2009-06-19",150000,150000,"-",0,0,"2011-05-17","п. 1 ч. 1 ст. 55.7 ГрК"]
[248,"Открытое акционерное общество «Проектный институт «Стерлитамак-горпроект»","ООО «Геометрия пространства»","0275061833","2009-06-19",150000,150000,"-",0,0,"2013-05-31","п. 1 ч. 1 ст. 55.7 ГрК"]
[249,"Общество с ограниченной ответственностью «Гражданпроект-Мастерская 5»","ООО ИЦ «АС-Проект»","0274112154","2009-06-19",150000,150000,"-",0,0,"2010-12-22","п. 1 ч. 1 ст. 55.7 ГрК"]
[250,"Общество с ограниченной ответственностью «БАШПРО»","ООО «Уфагазэнергопроект»","0274135338","2009-10-13",150000,150000,"-",0,0,"2010-10-18","п. 1 ч. 1 ст. 55.7 ГрК"]
[251,"Общество с ограниченной ответственностью «Башкиртеплоэнерго»","ООО «Новойл-Энерго»","0277052714","2009-12-28",150000,150000,"-",0,0,"2011-04-08","п. 1 ч. 1 ст. 55.7 ГрК"]
[252,"Общество с ограниченной ответственностью «Уралпромэнерго»","ООО «Синтез-ремонт»","0277039640","2009-12-28",150000,150000,"-",0,0,"2011-10-18","п. 1 ч. 1 ст. 55.7 ГрК"]
[253,"Общество с ограниченной ответственностью «ОМНИФОРМ»","ООО «Монолит-Проект»","7448069350","2009-09-08",150000,150000,"-",0,0,"2011-10-18","п. 1 ч. 1 ст. 55.7 ГрК"]
[254,"Общество с ограниченной ответственностью «Гражданпроект-Мастерская 1»","ООО «Башстройэкология»","0278104348","2010-04-30",{"$f":"G257+I257","v":150000},150000,"-",0,0,"2012-01-18","п. 1 ч. 1 ст. 55.7 ГрК"]
[255,"Общество с ограниченной ответственностью «Энерготехсервис»","ООО «ИАЦ» ДХО ЗО ТАФ «Архпроект» СА РБ","0278059180","2009-11-10",150000,150000,"-",0,0,"2012-01-23","п. 1 ч. 1 ст. 55.7 ГрК"]
[256,"Открытое акционерное общество «Объединенная нефтехимическая компания»","ООО «РАТАН»","0278040430","2010-06-22",150000,150000,"-",0,0,"2012-08-27","п. 1 ч. 1 ст. 55.7 ГрК"]
[257,"Общество с ограниченной ответственностью «УралЭнергоРемонт»","ООО НПЦ «ДЗЕРЖИНСКПРОЕКТ»","5249071680","2010-03-02",150000,150000,"-",0,0,"2012-04-18","п. 1 ч. 1 ст. 55.7 ГрК"]
[258,"Акционерное общество Проектно-изыскательный институт «Башгипроводхоз»","ООО «Проектное бюро «Энерго»","0274121984","2009-12-15",150000,150000,"-",0,0,"2012-08-27","п. 1 ч. 1 ст. 55.7 ГрК"]
[259,"Закрытое акционерное общество «Проектно-технический центр «Мир»","ЗАО Уфимский институт «Коммунводоканалпроект»","0273002286","2009-09-08",250000,250000,"-",0,0,"2012-12-22","п. 1 ч. 1 ст. 55.7 ГрК"]
[260,"Общество с ограниченной ответственностью «ТВС +»","ООО ПИК «Башкиргражданпроект»","0275071729","2011-01-19",150000,150000,"-",0,0,"2013-04-01","п. 1 ч. 1 ст. 55.7 ГрК"]
[261,"Общество с ограниченной ответственностью «Проектная мастерская «А2»","ОАО «Сода»","0268015226","2009-12-01",150000,150000,{"$f":"F189","v":"-"},0,0,"2013-04-09","п. 1 ч. 1 ст. 55.7 ГрК"]
[262,"Государственное унитарное предприятие «Проектный и конструкторский институт «Башкирский Промстройпроект»","ООО «АБ «ЮМАРТ»","0278085582","2010-12-15",150000,150000,"-",0,0,"2013-04-04"," п.2 ч.2 ст. 55.7 ГрК"]
[263,"Общество с ограниченной ответственностью фирма «М.АРТ»","ООО «БАШПРО»","0275066599","2009-09-08",250000,250000,"-",0,0,"2015-04-02"," п.2 ч.2 ст. 55.7 ГрК"]
[264,"Общество с ограниченной ответственностью Компания «АРХСТРОЙИНВЕСТ»","ООО «Башкиртеплоэнерго»","0276066471","2009-12-28",150000,150000,"-",0,0,"2015-04-02"," п.2 ч.2 ст. 55.7 ГрК"]
[265,"Общество с ограниченной ответственностью Инженерная Компания «УфаГражданПроект«","МУП «УАиГ»","0265030392","2010-01-26",150000,150000,"-",0,0,"2013-11-22","п. 1 ч. 1 ст. 55.7 ГрК"]
[266,"Закрытое акционерное общество «Башкирский инвестиционный дом»","ООО «Уралпромэнерго»","0276082995","2009-07-14",150000,150000,"-",0,0,"2015-04-02"," п.2 ч.2 ст. 55.7 ГрК"]
[267,"Общество с ограниченной ответственностью «Уралрегионстрой»","ООО «ОМНИФОРМ»","0274120388","2010-09-28",150000,150000,"-",0,0,"2015-04-02"," п.2 ч.2 ст. 55.7 ГрК"]
[268,"ОБЩЕСТВО С ОГРАНИЧЕННОЙ ОТВЕТСТВЕННОСТЬЮ «ДОРГЕОСЕРВИС»","ООО «Гражданпроект-Мастерская 1»","0275040914","2009-12-15",150000,150000,"-",0,0,"2015-04-02","п. 1 ч. 1 ст. 55.7 ГрК"]
[269,"Общество с ограниченной ответственностью Проектно-инжиниринговая компания «Гелеон»","ОАО «ОНК»","7710902359","2013-04-09",150000,150000,"-",0,0,"2015-05-26","п. 1 ч. 1 ст. 55.7 ГрК"]
[270,"Общество с ограниченной ответственностью «Сервисная компания «ОЗНА»","ООО «РегионСтройПроект»","0275063397","2009-12-15",150000,150000,"-",0,0,"2013-04-04"," п.2 ч.2 ст. 55.7 ГрК"]
[271,"Индивидуальный предприниматель Дашкин Эльвир Ринатович","ООО «АМД»","0274159160","2011-12-27",150000,150000,"-",0,0,"2013-09-20","п. 1 ч. 1 ст. 55.7 ГрК"]
[272,"Закрытое акционерное общество «Энергомир»","ООО СУ «Старый Кремль»","0274121991","2009-12-28",500000,500000,"-",0,0,"2013-09-20","п. 1 ч. 1 ст. 55.7 ГрК"]
[273,"Общество с ограниченной ответственностью «ТермоХольц»","ООО «ИБ «Аркада»","0276102049","2009-11-10",150000,150000,"-",0,0,"2013-11-12","п. 1 ч. 1 ст. 55.7 ГрК"]
[274,"Общество с ограниченной ответственностью «БАШПРОЕКТМОНТАЖ»","ООО НПО «Уфанефтегазпроект»","027133838","2009-07-01",150000,150000,"-",0,0,"2014-04-18"," п.2 ч.2 ст. 55.7 ГрК"]
[275,"Общество с ограниченной ответственностью «УралНИПИнефть»","ООО «Акваэконика»","0268067993","2011-04-05",150000,150000,"-",0,0,"2014-04-18"," п.2 ч.2 ст. 55.7 ГрК"]
[276,"Общество с ограниченной ответственностью «РАУМ Арчитектс»","ООО «НПТ»","0278162050","2010-06-30",150000,150000,"-",0,0,"2014-04-18"," п.2 ч.2 ст. 55.7 ГрК"]
[277,"Общество с ограниченной ответственностью «Ресурс Трейд»","ООО «УЭРем»","0276129192","2011-11-10",150000,150000,"-",0,0,"2015-05-26","п. 1 ч. 1 ст. 55.7 ГрК"]
[278,"Общество с ограниченной ответственностью «Проектная фирма «АРХ»","МУП УИС","0277121421","2013-06-25",150000,150000,"-",0,0,"2014-11-27","п. 1 ч. 1 ст. 55.7 ГрК"]
[279,"Закрытое акционерное общество «Флагман»","ООО «Мой дом»","4345244238","2009-11-10",150000,150000,"-",0,0,"2014-04-18"," п.2 ч.2 ст. 55.7 ГрК"]
[280,"Общество с ограниченной ответственностью «Квадр»","ООО «СП»","7446029480","2010-02-16",150000,150000,"-",0,0,"2014-04-18"," п.2 ч.2 ст. 55.7 ГрК"]
[281,"Общество с ограниченной ответственностью Научно-производственный центр «Шэрыкъ»","ООО «СП ВЭМ»","0275061287","2014-06-10",150000,150000,"-",0,0,"2015-03-13","п. 1 ч. 1 ст. 55.7 ГрК"]
[282,"Общество с ограниченной ответственностью «Проектно-строительное предприятие «МАИС»","ООО «ИНКОТЭМ»","7719646847","2010-04-13",1000000,1000000,"-",0,0,"2014-11-17","п. 1 ч. 1 ст. 55.7 ГрК"]
[283,"Общество с ограниченной ответственностью «УЯРУС»","ООО ПКФ «Контур»","0276121933","2011-06-28",150000,150000,"-",0,0,"2014-04-18"," п.2 ч.2 ст. 55.7 ГрК"]
[284,"Общество с ограниченной ответственностью «Источник»","АО ПИИ «Башгипроводхоз»","0278111578","2009-06-19",500000,500000,"-",0,0,"2015-07-23","п. 1 ч. 1 ст. 55.7 ГрК"]
[285,"Закрытое Акционерное Общество «Генпроект»","ООО «Энерготехсервис»","0276063417","2009-12-28",150000,150000,"-",0,0,"2015-05-14","п. 1 ч. 1 ст. 55.7 ГрК"]
[286,"Общество с ограниченной ответственностью «Уфимская негосударственная экспертиза»","ООО «Гольфстрим»","5610115467","2010-04-13",150000,150000,"-",0,0,"2012-04-18","п. 1 ч. 1 ст. 55.7 ГрК"]
[287,"Общество с ограниченной ответственностью «Нефтегазпроект»","ООО «Эмикс»","0278119619","2010-09-20",150000,150000,"-",0,0,"2012-01-18","п. 1 ч. 1 ст. 55.7 ГрК"]
[288,"Общество с ограниченной ответственностью «Агромонтаж-сервис»","ООО «БашНИПИнефть»","0278127289","2009-10-13",{"$f":"G291+I291","v":1000000},1000000,"-",0,0,"2017-05-25","п. 1 ч. 1 ст. 55.7 ГрК"]
[289,"Общество с ограниченной ответственностью «Квадрат»","ООО «Риком»","0268023280","2010-03-30",150000,150000,"-",0,0,"2017-05-15","п. 1 ч. 1 ст. 55.7 ГрК"]
[290,"Общество с ограниченной ответственностью «Генподрядная строительная фирма КПД»","ФГУП «УС-30»","0279000119","2009-06-19",150000,150000,"-",0,0,"2017-02-27","п. 1 ч. 1 ст. 55.7 ГрК"]
[291,"Общество с ограниченной ответственностью «ВентПроф»","ООО «ВентПроф»","0278035542","2010-01-26",150000,150000,"-",0,0,"08.02..2017","п. 1 ч. 1 ст. 55.7 ГрК"]
[292,"Федеральное государственное унитарное предприятие «Управление строительства №30»","ООО «Квадрат»","0274158448","2013-02-20",150000,150000,"-",0,0,"2017-02-01","п. 1 ч. 1 ст. 55.7 ГрК"]
[293,"Общество с ограниченной ответственностью «Риком»","ООО «Башнефть-Информ»","0245012250","2015-10-14",150000,150000,"-",0,0,"2017-06-06"," п.2 ч.2 ст. 55.7 ГрК"]
[294,"Общество с ограниченной ответственностью «БашНИПИ-нефть»","ООО «Инженерный центр»","0274163159","2013-11-19",150000,150000,"-",0,0,"2017-06-01","п. 1 ч. 1 ст. 55.7 ГрК"]
[null,"Общество с ограниченной ответственностью «Инженерный центр»"]
[null,"Общество с ограниченной ответственностью «Башнефть-Информ»"]
[null,"Общество с ограниченной ответственностью «Ресурс»"]
[null,"Общество с ограниченной ответственностью «Газ-Проект Инжиниринг»"]
[]
[]
[null,null,"* Указывается сумма внесенного взноса в компенсационный фонд, размер которого утвержден решением общего собрания членов до вступления в силу 372-ФЗ (до 04.07.2016)"]
[null,null,"** Указывается сумма внесенного взноса в компенсационный фонд возмещения вреда (КФ ВВ), размер которого утвержден решением общего собрания членов после 04.07.2016, либо сумма взноса, зачисленного в КФ ВВ на основании заявления члена в соответствии с ч.9 ст. 3.3 191-ФЗ"]
[null,null,"*** Указывается сумма внесенного взноса в компенсационный фонд обеспечения договорных обязательств (КФ ОДО), размер которого утвержден решением общего собрания членов после 04.07.2016, либо сумма взноса, зачисленного в КФ ОДО на основании заявления члена в соответствии с ч.9 ст. 3.3 191-ФЗ"]
[null,null,"**** Указываются основания для исключения:"]
[null,null,"1) заявление о добровольном выходе (п. 1 ч. 1 ст. 55.7 ГрК)"]
[null,null,"2) п.1 ч.2 ст. 55.7 ГрК"]
[null,null,"3) п.2 ч.2 ст. 55.7 ГрК"]
[null,null,"4) п. 3 ч.2 ст. 55.7 ГрК"]
[null,null,"5) п.4 ч.2 ст. ст. 55.7 ГрК"]
[null,null,"6) п. 5 ч.2 ст. 55.7 ГрК"]
[null,null,"7) п. 6 ч. 2 ст. 55.7 ГрК"]
[null,null,"8) смерть ИП или ликвидация ЮЛ (п.3 ч.1 ст. 55.7 ГрК)"]
[null,null,"9) ч.4 ст. 3.2 191-ФЗ"]
[null,null,"10) уведомление о прекращении членства в связи с переходом в другую саморегулируемую организацию (п.1 ч.5 ст. 3.3 191-ФЗ)"]
[null,null,"11) ч. 7 ст. 3.3 191-ФЗ"]
[null,null,"***** Указывается в случае добровольного прекращения членства в связи с переходом в другую саморегулируемую организацию (п.2 ч.5, ч.6 ст. 3.3 191-ФЗ)"]

{"sheet":"Лист1","index":1,"n_rows":74,"n_cols":3,"rows_kept":74,"cut":false,"hidden":false,"merged":[]}
["январь 2025"]
["ООО «Стройпроект»","СРО-П-Б-0360","0274931562"]
["ООО «Архпроект»","СРО-П-Б-0184","0278171217"]
["ООО \"Башнефтехим\"","СРО-П-Б-0320","0266025349"]
["февраль 2025"]
["ООО АБ «Проспект»","СРО-П-Б-0174"," 0278165252"]
["АО «Форт Диалог»","СРО-П-Б-0160","1650006259"]
["ООО «ЭнергОм»","СРО-П-Б-0164","0273078060"]
["ООО \"ГК РИКОМ\"","СРО-П-Б-0423","0268067506"]
["ООО  НИИ БЖД РБ","СРО-П-Б-0168"," 0278940871"]
["ООО ГК «Георекон»","СРО-П-Б-0237","0276146342"]
["МБУ «Архитектура и градостроительство»","СРО-П-Б-0154","0263032700"]
["ООО НИПИ \"ТЭНГ\"","СРО-П-Б-0422","0277915008"]
["март 2025"]
["ООО «Проектная мастерская «Архитек» ","СРО-П-Б-0117","5611050188"]
["ООО ПИ АСП ","СРО-П-Б-0180","0275066944"]
["ООО «Теплоэнерго»","СРО-П-Б-0191","0255012154"]
["ООО «НПФ «Теплофизика»","СРО-П-Б-076","0274023585"]
["ООО \"ИСПРО\"","СРО-П-Б-424","0276960304"]
["апрель 2025"]
["ООО «СМУ-8»","СРО-П-Б-0363","0275079703"]
["ООО «СМК»     ","СРО-П-Б-0364","0272015204"]
["АО «СЗ ИСК г. Уфы»","СРО-П-Б-0192","0275916687"]
["ООО ЭМНП «УМНЭКС»","СРО-П-Б-0206","0270012857"]
["ООО \"ГПС\"","СРО-П-Б-0426","0278970650"]
["май 2025"]
["ООО «РБНЭО «Стандарт»","СРО-П-Б-0365","0274104770"]
["ООО «СПЕЦСТРОЙПУТЬ»","СРО-П-Б-0366","0278207431"]
["ООО «Башгипроагропром»","СРО-П-Б-0209","0278185844"]
["ООО «ИЦ «ЭлПро»","СРО-П-Б-0210","0276137771"]
["ООО ПИИ АСП","СРО-П-Б-0213","0274166150"]
["ООО \"МЦЭК\"","СРО-П-Б-0425","0278170735"]
["ООО \"Союз-Проект\"","СРО-П-Б-0216","0276139521"]
["июнь 2025"]
["ООО  «БашГазПроект»","СРО-П-Б-0367","0274914013"]
["ООО  «Расстрой»","СРО-П-Б-0368"," 0275071856"]
["ООО «БашРТС»","СРО-П-Б-0220","0277072661"]
["ООО «ИНСП»","СРО-П-Б-0222","0276141898"]
["ООО АСК «АрхиТэк»","СРО-П-Б-0225","0276133512"]
["ООО АБ «Эйбл»","СРО-П-Б-0229","0278188161"]
["ООО «ПРОЕКТ-М»","СРО-П-Б-0235","0274929926"]
["ООО СК \"ВЕКТОР\"","СРО-П-Б-0429","0278186527"]
["ООО \"ИнвестСтройПроект\"","СРО-П-Б-0427","0263029169"]
["ООО \"АБ ПРОЕКТ +\"","СРО-П-Б-0428","0278931041"]
["июль 2025"]
["ООО «КВАДРИТ»","СРО-П-Б-0370","0278200605"]
["ООО «ГЕОМЕТРИЯ ПРОСТРАНСТВА+»","СРО-П-Б-0228","0278195962"]
["ООО «СТИ» ","СРО-П-Б-0369","0266034907"]
["ООО «Башкирэнерго»","СРО-П-Б-0239","0277071467"]
["ООО «Энергостройкомплект»","СРО-П-Б-0240","0265015771"]
["ООО \"БНПС-ИНВЕСТ\"","СРО-П-Б-0433","0253014741"]
["август 2025"]
["ООО «Техинновация»","СРО-П-Б-0371","0276915196"]
["ООО «Технология»","СРО-П-Б-0109","1835083827"]
["ООО \"Техно Проект\"","СРО-П-Б-0432","0277958604"]
["ООО \"ПРОМЛИНК\"","СРО-П-Б-0430","1831197407"]
["ООО \"Башкирская медь\"","СРО-П-Б-0250","0267011229"]
["ООО предприятие \"Факел","СРО-П-Б-0434","0255007250"]
["сентябрь 2025"]
["ООО «БАЛАНС»","СРО-П-Б-0372","0254027790"]
["ООО \"СКАЙПРОЕКТ\"","СРО-П-Б-0435","0276970415"]
["ООО «ГазДизайн»","СРО-П-Б-0416","0278154363"]
["октябрь 2025"]
[{"$f":"[1]Лист1!A56","v":"ООО «АВАЛОН»"},"СРО-П-Б-0376","0262006948"]
[{"$f":"[1]Лист1!A58","v":"ООО  «МеталПромГражданСтрой»"},"СРО-П-Б-0375",{"$f":"[1]Лист1!C58","v":"0276917147"}]
["ноябрь 2025"]
[{"$f":"[1]Лист1!A61","v":"ИП Судаков А.А."},"СРО-П-Б-0379",{"$f":"[1]Лист1!C61","v":"027807784278"}]
[{"$f":"[1]Лист1!A62","v":"ООО  «АрхБюро» "},"СРО-П-Б-0243","0278192217"]
[{"$f":"[1]Лист1!A64","v":"ЗАО «Татпромтехпроект»"},"СРО-П-Б-0086",{"$f":"[1]Лист1!C64","v":"1659083882"}]
[{"$f":"[1]Лист1!A65","v":"ООО «Стройпроект»"},"СРО-П-Б-0382",{"$f":"[1]Лист1!C65","v":"0278954190"}]
["декабрь 2025"]
["ИП Карпов А.Л.","СРО-П-Б-0380","027717266095"]
["ООО «Рост»","СРО-П-Б-0381","0278905958"]
[{"$f":"[1]Лист1!A68","v":"ООО «Геокон»"},"СРО-П-П-0383",{"$f":"[1]Лист1!C68","v":"0278012760"}]